fUSD/lending_fUSD_20250526
["ID","MTS","AMOUNT","RATE_DAILY","PERIOD"]
[362379435,1748232642789,-420.0,0.00019994,2]
[362379436,1748232642799,-420.0,0.00019994,2]
[362379437,1748232642809,-500.0,0.00019994,2]
[362379438,1748232642818,-420.0,0.00019994,2]
[362379439,1748232642828,-488.58593458,0.00019994,2]
[362379440,1748232642837,-420.0,0.00019994,2]
[362379441,1748232642847,-500.02545587,0.00019994,2]
[362379442,1748232642856,-420.0,0.00019994,2]
[362379443,1748232642866,-442.13225717,0.00019994,2]
[362379444,1748232642875,-389.78425462,0.00019994,2]
[362379445,1748232642884,-394.91013198,0.00019994,2]
[362379446,1748232642894,-420.0,0.00019994,2]
[362379447,1748232642903,-420.0,0.00019994,2]
[362379448,1748232642912,-420.0,0.00019994,2]
[362379449,1748232642921,-420.0,0.00019994,2]
[362379450,1748232642931,-270.82752676,0.00019994,2]
[362379451,1748232642940,-517.81715654,0.00019994,2]
[362379452,1748232642950,-260.78237454,0.00019994,2]
[362379453,1748232642959,-432.31350606,0.00019994,2]
[362379454,1748232642968,-428.93068064,0.00019994,2]
[362379455,1748232642977,-445.78996382,0.00019994,2]
[362379456,1748232642987,-420.0,0.00019994,2]
[362379457,1748232642996,-384.86827201,0.00019994,2]
[362379458,1748232643005,-420.0,0.00019994,2]
[362379459,1748232643014,-437.46020382,0.00019994,2]
[362379460,1748232643024,-420.0,0.00019994,2]
[362379461,1748232643033,-174.05282742,0.00019994,2]
[362379462,1748232643043,-420.0,0.00019994,2]
[362379463,1748232643052,-427.18045898,0.00019994,2]
[362379464,1748232643061,-434.47766107,0.00019994,2]
[362379465,1748232643072,-420.0,0.00019994,2]
[362379466,1748232643082,-420.0,0.00019994,2]
[362379467,1748232643091,-398.16574508,0.00019994,2]
[362379468,1748232643101,-414.35939277,0.00019994,2]
[362379469,1748232643110,-439.06090431,0.00019994,2]
[362379470,1748232643120,-303.92029762,0.00019994,2]
[362379471,1748232643129,-467.83887769,0.00019994,2]
[362379472,1748232643138,-447.9577405,0.00019994,2]
[362379473,1748232643148,-376.99,0.00019994,2]
[362379474,1748232643157,-50587.1767421,0.00019995,2]
[362379475,1748232643167,-16379.1397162,0.00019995,2]
[362379476,1748232643177,-2633.6209801,0.00019995,2]
[362379477,1748232643186,-6870.6546084,0.00019995,2]
[362379478,1748232643195,-367.0342425,0.00019995,2]
[362379479,1748232643205,-384.44402807,0.00019999,2]
[362379480,1748232643214,-3158.71540652,0.00019999,2]
[362379481,1748232643223,-420.0,0.00019999,2]
[362379482,1748232643233,-420.0,0.00019999,2]
[362379483,1748232643245,-420.0,0.00019999,2]
[362379484,1748232643255,-420.0,0.00019999,2]
[362379485,1748232643265,-420.0,0.00019999,2]
[362379486,1748232643274,-518.62,0.00019999,2]
[362379487,1748232643284,-500.0,0.00019999,2]
[362379488,1748232643295,-494.81019021,0.00019999,2]
[362379489,1748232643305,-421.61,0.00019999,2]
[362379490,1748232643318,-411.81452674,0.00019999,2]
[362379491,1748232643328,-198.35,0.00019999,2]
[362379492,1748232643338,-1577.0,0.00019999,2]
[362379493,1748232643350,-279.71252306,0.0002,2]
[362379494,1748232643359,-376359.1977865,0.0002,2]
[362379495,1748232643369,-516532.50698305,0.0002,2]
[362379496,1748232643378,-175088.17233747,0.0002,2]
[362379497,1748232643394,-58714.80361168,0.0002,2]
[362379498,1748232643405,-4124.00919457,0.0002,2]
[362379499,1748232643416,-12596.60171703,0.0002,2]
[362379500,1748232643427,-1095.2,0.0002,2]
[362379501,1748232643439,-54787.70128264,0.0002,2]
[362379502,1748232643452,-6428.02971896,0.0002,2]
[362379503,1748232643525,-885.255,0.00019648,2]
[362379504,1748232643535,-1671.79064211,0.0002,2]
[362379505,1748232645553,-118.07888027,0.0002,2]
[362379506,1748232645632,-2336.9,0.0002,2]
[362379507,1748232645953,-2895.00351212,0.0002,2]
[362379512,1748232668197,596.73182098,0.00014814,2]
[362379517,1748232769219,150.0,0.00027388,120]
[362379525,1748232872807,300.0,0.00027388,120]
[362379529,1748232903856,290.44,0.00027388,120]
[362379530,1748232936186,200.0,0.00027388,120]
[362379536,1748233004896,150.0,0.00027388,120]
[362379541,1748233090233,150.0,0.00027388,120]
[362379545,1748233197725,345.02,0.00013699,2]
[362379546,1748233286553,250.0,0.00015,2]
[362379547,1748233291812,-193.18963123,0.00016706,2]
[362379548,1748233295040,-189.9731221,0.00016706,2]
[362379549,1748233298068,-374.24755522,0.00016706,2]
[362379550,1748233300804,-289.74498282,0.00016706,2]
[362379551,1748233305104,-155.51470863,0.00016706,2]
[362379559,1748233543500,2867.99827346,0.00023,30]
[362379563,1748233566509,939.46764241,8e-05,2]
[362379564,1748233648604,46536.55827088,0.00023,30]
[362379627,1748233831770,-300.0,0.00017,2]
[362379628,1748233831781,-166.026091,0.00018245,2]
[362379629,1748233831791,-152.86,0.00018338,2]
[362379630,1748233831800,-15.10461179,0.00018394,2]
[362379631,1748233831812,-284.89538821,0.00018394,2]
[362379632,1748233831822,-140.02377874,0.00018394,2]
[362379633,1748233831838,-1059.97622126,0.00018394,2]
[362379634,1748233831847,-4291.51291246,0.00018395,2]
[362379635,1748233831859,-1274.99708754,0.00018395,2]
[362379636,1748233831868,-168.85,0.00018395,2]
[362379637,1748233831878,-463.97110185,0.00018425,2]
[362379638,1748233831892,-536.02889815,0.00018425,2]
[362379639,1748233831902,-250.0,0.00018428,2]
[362379640,1748233831911,-150.0,0.00018499,7]
[362379641,1748233831921,-250.0,0.00018514,2]
[362379642,1748233831930,-250.0,0.00018668,2]
[362379643,1748233831940,-208.0,0.00018693,2]
[362379644,1748233831949,-200.0,0.000187,2]
[362379645,1748233831958,-200.0,0.000187,2]
[362379646,1748233831968,-164.27,0.0001872,2]
[362379647,1748233831978,-1484.3,0.00018724,2]
[362379648,1748233831989,-4421.0489385,0.0001878,2]
[362379649,1748233832000,-1733.4835,0.0001878,2]
[362379650,1748233832011,-960.644998,0.0001878,2]
[362379651,1748233832023,-857.98047029,0.0001878,2]
[362379652,1748233832035,-714.24132484,0.0001878,2]
[362379653,1748233832046,-6433.01763485,0.0001878,2]
[362379654,1748233832057,-517.992,0.0001878,2]
[362379655,1748233832068,-2281.20714157,0.0001878,2]
[362379657,1748233832079,-538.27,0.0001878,2]
[362379659,1748233832090,-278.32009924,0.0001878,2]
[362379660,1748233832101,-2917.50301838,0.0001878,2]
[362379661,1748233832113,-597.59280066,0.0001878,2]
[362379662,1748233832128,-544.02253773,0.0001878,2]
[362379690,1748233837766,-42356.6337604,0.0001878,2]
[362379691,1748233837776,-1996.02543663,0.000189,3]
[362379692,1748233837786,-223.89676521,0.000189,2]
[362379693,1748233837796,-1202.67,0.0001897,2]
[362379694,1748233837805,-500.0,0.00018986,2]
[362379695,1748233837815,-207.4,0.00018997,2]
[362379696,1748233837824,-151.0,0.00018997,2]
[362379697,1748233837834,-158.34659,0.00019,2]
[362379698,1748233837843,-350.0,0.00019,2]
[362379699,1748233837852,-500.0,0.00019164,2]
[362379700,1748233837862,-500.0,0.00019164,2]
[362379701,1748233837871,-498.232809,0.00019178,2]
[362379702,1748233837881,-498.232809,0.00019178,2]
[362379703,1748233837890,-498.232809,0.00019178,2]
[362379704,1748233837900,-1000.0,0.000192,2]
[362379705,1748233837909,-400.0,0.000192,7]
[362379706,1748233837919,-152.0,0.00019268,3]
[362379707,1748233837928,-800.0,0.000193,7]
[362379708,1748233837937,-498.232809,0.00019369,2]
[362379709,1748233837947,-1200.0,0.000194,7]
[362379710,1748233837956,-223.89676494,0.00019452,2]
[362379711,1748233837966,-1700.0,0.000195,7]
[362379712,1748233837975,-399.061898,0.00019599,2]
[362379713,1748233837984,-1130.6547,0.000196,2]
[362379714,1748233837994,-2100.0,0.000196,7]
[362379715,1748233838003,-1182.8092,0.00019699,2]
[362379716,1748233838012,-400.0,0.000197,7]
[362379717,1748233838022,-498.232809,0.00019726,2]
[362379718,1748233838031,-498.232809,0.00019726,2]
[362379719,1748233838040,-150.0,0.00019735,2]
[362379720,1748233838049,-150.0,0.00019744,2]
[362379721,1748233838059,-150.0,0.00019752,2]
[362379722,1748233838068,-150.0,0.00019763,2]
[362379723,1748233838078,-150.0,0.00019776,2]
[362379724,1748233838087,-84189.87031753,0.0001978,2]
[362379725,1748233838096,-1606.605,0.0001979,2]
[362379727,1748233838105,-150.0,0.00019799,2]
[362379729,1748233838114,-2147.96,0.000198,2]
[362379731,1748233838123,-400.0,0.000198,7]
[362379732,1748233838132,-276.10614226,0.00019809,2]
[362379734,1748233838142,-150.0,0.00019813,2]
[362379736,1748233838152,-150.0,0.00019821,2]
[362379738,1748233838162,-151.0727843,0.00019825,2]
[362379740,1748233838172,-150.0,0.00019834,2]
[362379742,1748233838182,-150.0,0.00019843,2]
[362379744,1748233838192,-150.0,0.00019861,2]
[362379746,1748233838202,-150.0,0.00019881,2]
[362379747,1748233838213,-150.0,0.0001989,2]
[362379748,1748233838223,-938.894,0.00019892,2]
[362379749,1748233838234,-183.02322995,0.00019892,2]
[362379750,1748233838244,-156.54823783,0.00019895,2]
[362379751,1748233838253,-363.88025838,0.00019895,2]
[362379752,1748233838265,-363.88025831,0.00019896,2]
[362379753,1748233838276,-156.54823783,0.00019896,2]
[362379754,1748233838287,-363.88025831,0.00019896,2]
[362379755,1748233838297,-156.54823783,0.00019896,2]
[362379756,1748233838308,-363.88025831,0.00019897,2]
[362379757,1748233838318,-156.54823783,0.00019897,2]
[362379758,1748233838330,-150.0,0.00019897,2]
[362379759,1748233838346,-363.88025831,0.00019897,2]
[362379760,1748233838355,-156.54823783,0.00019898,2]
[362379761,1748233838365,-363.88025831,0.00019898,2]
[362379762,1748233838375,-156.54823783,0.00019898,2]
[362379763,1748233838387,-363.88025831,0.00019898,2]
[362379764,1748233838397,-156.54823783,0.00019899,2]
[362379765,1748233838407,-363.88025831,0.00019899,2]
[362379766,1748233838417,-2002.963,0.00019899,2]
[362379767,1748233838426,-576.2584,0.00019899,2]
[362379768,1748233838435,-498.232809,0.00019899,2]
[362379769,1748233838445,-498.232809,0.00019899,2]
[362379770,1748233838455,-498.232809,0.00019899,2]
[362379771,1748233838465,-183.86715225,0.00019899,2]
[362379772,1748233838474,-390.46060419,0.00019899,2]
[362379773,1748233838484,-500.0,0.00019899,2]
[362379774,1748233838493,-500.0,0.00019899,2]
[362379775,1748233838503,-500.0,0.00019899,2]
[362379776,1748233838512,-500.0,0.00019899,2]
[362379777,1748233838521,-413.57915801,0.00019899,2]
[362379778,1748233838530,-500.0,0.00019899,2]
[362379779,1748233838540,-500.0,0.00019899,2]
[362379780,1748233838550,-500.0,0.00019899,2]
[362379781,1748233838559,-156.54823783,0.00019899,2]
[362379782,1748233838568,-363.88025831,0.00019899,2]
[362379783,1748233838584,-169.44120148,0.000199,2]
[362379784,1748233838594,-230.02587706,0.000199,2]
[362379785,1748233838603,-156.06875778,0.000199,2]
[362379786,1748233838612,-1721.38565866,0.000199,3]
[362379787,1748233838622,-156.54823783,0.000199,2]
[362379788,1748233838631,-20000.0,0.000199,2]
[362379789,1748233838641,-7162.52415837,0.000199,7]
[362379790,1748233838650,-275.29544304,0.000199,2]
[362379791,1748233838660,-363.88025831,0.000199,2]
[362379792,1748233838669,-400.0,0.000199,7]
[362379793,1748233838678,-152.22144656,0.000199,2]
[362379794,1748233838687,-498.232809,0.00019921,2]
[362379795,1748233838697,-150.0,0.00019932,2]
[362379796,1748233838707,-150.0,0.0001994,2]
[362379797,1748233838716,-150.0,0.00019941,2]
[362379798,1748233838725,-150.0,0.00019944,2]
[362379799,1748233838736,-150.0,0.00019959,2]
[362379800,1748233838746,-150.0,0.0001996,2]
[362379801,1748233838756,-150.0,0.00019972,2]
[362379802,1748233838765,-259.96870307,0.00019972,2]
[362379803,1748233838774,-500.0,0.00019973,2]
[362379804,1748233838784,-500.0,0.00019973,2]
[362379805,1748233838793,-500.0,0.00019973,2]
[362379806,1748233838803,-150.0,0.00019973,2]
[362379807,1748233838813,-208.66170482,0.00019973,2]
[362379808,1748233838823,-500.0,0.00019973,2]
[362379809,1748233838832,-150.0,0.00019973,2]
[362379810,1748233838842,-500.0,0.00019973,2]
[362379811,1748233838851,-150.0,0.00019976,2]
[362379812,1748233838861,-500.0,0.0001998,2]
[362379813,1748233838870,-499.99,0.0001998,2]
[362379814,1748233838880,-498.232809,0.00019989,2]
[362379815,1748233838889,-420.0,0.00019989,2]
[362379816,1748233838898,-420.0,0.00019989,2]
[362379817,1748233838907,-420.0,0.00019989,2]
[362379818,1748233838917,-420.0,0.00019989,2]
[362379819,1748233838926,-240.49,0.00019989,2]
[362379820,1748233838936,-852.1126979,0.0001999,2]
[362379821,1748233838945,-8799.91121447,0.0001999,2]
[362379822,1748233838954,-498.232809,0.00019992,2]
[362379823,1748233838964,-498.232809,0.00019992,2]
[362379824,1748233838973,-150.0,0.00019992,2]
[362379825,1748233838982,-498.232809,0.00019993,2]
[362379826,1748233838992,-498.232809,0.00019994,2]
[362379827,1748233839001,-498.232809,0.00019994,2]
[362379828,1748233839010,-411.81452674,0.00019994,2]
[362379829,1748233839020,-198.35,0.00019994,2]
[362379830,1748233839029,-1000.0,0.00019995,2]
[362379831,1748233839038,-7404.0582023,0.00019995,2]
[362379832,1748233839047,-31521.2723084,0.00019995,2]
[362379833,1748233839057,-5238.8660038,0.00019995,2]
[362379834,1748233839066,-1145.1091014,0.00019995,2]
[362379835,1748233839075,-36365.03033511,0.00019995,2]
[362379836,1748233839087,-333.55950292,0.00019995,2]
[362379837,1748233839099,-1486.05511616,0.00019995,2]
[362379838,1748233839111,-448.13726371,0.00019995,2]
[362379839,1748233839122,-379.75986534,0.00019995,2]
[362379840,1748233839133,-1520.0,0.00019995,2]
[362379841,1748233839152,-420.0,0.00019989,2]
[362379842,1748233839162,-13880.69084724,0.00019995,2]
[362379843,1748233839173,-1629.83238255,0.00019995,2]
[362379890,1748233840172,-43.45921927,0.0001999,2]
[362379892,1748233840184,-180.60941259,0.0001999,2]
[362379894,1748233840194,-224.06863186,0.0001999,2]
[362379896,1748233840203,-9258.5444165,0.00019995,2]
[362379898,1748233840215,-5237.75882463,0.00019995,2]
[362379902,1748233840240,-47587.68679774,0.00019995,2]
[362379904,1748233840249,-820.7215435,0.00019995,2]
[362379906,1748233840259,-498.232809,0.00019997,2]
[362379908,1748233840268,-498.232809,0.00019998,2]
[362379910,1748233840278,-832.24,0.00019998,2]
[362379912,1748233840290,-498.232809,0.00019999,2]
[362379914,1748233840299,-498.232809,0.00019999,2]
[362379916,1748233840309,-498.232809,0.00019999,2]
[362379918,1748233840318,-498.232809,0.00019999,2]
[362379920,1748233840328,-498.232809,0.00019999,2]
[362379922,1748233840340,-498.232809,0.00019999,2]
[362379924,1748233840349,-498.232809,0.00019999,2]
[362379925,1748233840358,-498.232809,0.00019999,2]
[362379927,1748233840368,-443.44922869,0.00019999,2]
[362379929,1748233840378,-420.0,0.00019999,2]
[362379932,1748233840389,-420.0,0.00019999,2]
[362379934,1748233840398,-420.0,0.00019999,2]
[362379935,1748233840408,-420.0,0.00019999,2]
[362379939,1748233840419,-420.0,0.00019999,2]
[362379941,1748233840428,-420.0,0.00019999,2]
[362379944,1748233840437,-420.0,0.00019999,2]
[362379947,1748233840447,-420.0,0.00019999,2]
[362379950,1748233840456,-420.0,0.00019999,2]
[362379953,1748233840465,-420.0,0.00019999,2]
[362379956,1748233840474,-420.0,0.00019999,2]
[362379959,1748233840484,-368.59642308,0.00019999,2]
[362379962,1748233840494,-425.54716039,0.00019999,2]
[362379965,1748233840503,-435.53839847,0.00019999,2]
[362379967,1748233840512,-436.05417063,0.00019999,2]
[362379969,1748233840522,-420.0,0.00019999,2]
[362379971,1748233840531,-438.26418459,0.00019999,2]
[362379973,1748233840542,-424.70035031,0.00019999,2]
[362379975,1748233840551,-420.0,0.00019999,2]
[362379977,1748233840561,-420.0,0.00019999,2]
[362379978,1748233840571,-420.0,0.00019999,2]
[362379979,1748233840581,-428.08920239,0.00019999,2]
[362379980,1748233840590,-420.0,0.00019999,2]
[362379982,1748233840599,-432.3573644,0.00019999,2]
[362379984,1748233840610,-430.35623554,0.00019999,2]
[362379986,1748233840620,-427.75861846,0.00019999,2]
[362379988,1748233840629,-441.57861787,0.00019999,2]
[362379990,1748233840639,-441.26369032,0.00019999,2]
[362379992,1748233840649,-432.42816972,0.00019999,2]
[362379994,1748233840658,-420.0,0.00019999,2]
[362379996,1748233840668,-420.0,0.00019999,2]
[362379998,1748233840676,-460.72516754,0.00019999,2]
[362380000,1748233840686,-440.51243059,0.00019999,2]
[362380002,1748233840695,-433.72059028,0.00019999,2]
[362380004,1748233840705,-420.0,0.00019999,2]
[362380006,1748233840714,-420.0,0.00019999,2]
[362380008,1748233840724,-450.63840925,0.00019999,2]
[362380010,1748233840733,-340.8,0.00019999,2]
[362380012,1748233840743,-435.41877038,0.00019999,2]
[362380014,1748233840752,-456.35941997,0.00019999,2]
[362380016,1748233840763,-420.0,0.00019999,2]
[362380018,1748233840772,-551.62493084,0.00019999,2]
[362380020,1748233840783,-420.0,0.00019999,2]
[362380022,1748233840792,-3158.71540652,0.00019999,2]
[362380024,1748233840801,-420.0,0.00019999,2]
[362380026,1748233840811,-420.0,0.00019999,2]
[362380027,1748233840820,-420.0,0.00019999,2]
[362380029,1748233840830,-420.0,0.00019999,2]
[362380032,1748233840839,-420.0,0.00019999,2]
[362380034,1748233840849,-561.78950863,0.00019999,2]
[362380035,1748233840858,-420.0,0.00019999,2]
[362380038,1748233840868,-518.62,0.00019999,2]
[362380040,1748233840878,-420.0,0.00019999,2]
[362380042,1748233840887,-500.02545587,0.00019999,2]
[362380043,1748233840896,-500.0,0.00019999,2]
[362380046,1748233840905,-500.0,0.00019999,2]
[362380048,1748233840915,-494.81019021,0.00019999,2]
[362380049,1748233840926,-352.17869603,0.00019999,2]
[362380051,1748233840935,-420.0,0.00019999,2]
[362380052,1748233840944,-420.0,0.00019999,2]
[362380054,1748233840953,-394.91013198,0.00019999,2]
[362380056,1748233840962,-442.13225717,0.00019999,2]
[362380059,1748233840972,-420.0,0.00019999,2]
[362380061,1748233840981,-389.78425462,0.00019999,2]
[362380063,1748233840990,-480.79142625,0.00019999,2]
[362380065,1748233841000,-434.94429697,0.00019999,2]
[362380067,1748233841009,-420.0,0.00019999,2]
[362380069,1748233841018,-517.81715654,0.00019999,2]
[362380070,1748233841028,-420.0,0.00019999,2]
[362380071,1748233841037,-420.0,0.00019999,2]
[362380072,1748233841047,-270.82752676,0.00019999,2]
[362380073,1748233841056,-260.78237454,0.00019999,2]
[362380074,1748233841065,-544.42306009,0.00019999,2]
[362380075,1748233841075,-469.88889655,0.00019999,2]
[362380076,1748233841084,-428.00873656,0.00019999,2]
[362380077,1748233841093,-384.86827201,0.00019999,2]
[362380078,1748233841103,-432.31350606,0.00019999,2]
[362380079,1748233841112,-428.93068064,0.00019999,2]
[362380080,1748233841121,-445.78996382,0.00019999,2]
[362380081,1748233841131,-420.0,0.00019999,2]
[362380082,1748233841140,-420.0,0.00019999,2]
[362380083,1748233841149,-421.61,0.00019999,2]
[362380084,1748233841158,-476.30787986,0.00019999,2]
[362380085,1748233841167,-420.0,0.00019999,2]
[362380086,1748233841176,-437.46020382,0.00019999,2]
[362380087,1748233841186,-174.05282742,0.00019999,2]
[362380088,1748233841195,-420.0,0.00019999,2]
[362380090,1748233841205,-427.18045898,0.00019999,2]
[362380092,1748233841214,-420.0,0.00019999,2]
[362380093,1748233841223,-434.47766107,0.00019999,2]
[362380095,1748233841233,-464.45100986,0.00019999,2]
[362380097,1748233841242,-398.16574508,0.00019999,2]
[362380099,1748233841252,-303.92029762,0.00019999,2]
[362380101,1748233841261,-414.35939277,0.00019999,2]
[362380103,1748233841271,-439.06090431,0.00019999,2]
[362380105,1748233841280,-2000.0,0.00019999,2]
[362380107,1748233841290,-447.9577405,0.00019999,2]
[362380109,1748233841299,-376.99,0.00019999,2]
[362380111,1748233841308,-467.83887769,0.00019999,2]
[362380113,1748233841318,-420.0,0.00019999,2]
[362380115,1748233841328,-500.0,0.00019999,2]
[362380117,1748233841338,-420.0,0.00019999,2]
[362380119,1748233841349,-420.0,0.00019999,2]
[362380121,1748233841359,-312.6779967,0.00019999,2]
[362380123,1748233841367,-488.58593458,0.00019999,2]
[362380125,1748233841376,-420.0,0.00019999,2]
[362380127,1748233841386,-420.0,0.00019999,2]
[362380129,1748233841395,-384.44402807,0.00019999,2]
[362380130,1748233841404,-420.0,0.00019999,2]
[362380132,1748233841413,-1577.0,0.00019999,2]
[362380133,1748233841423,-279.71252306,0.0002,2]
[362380134,1748233841433,-378008.76599276,0.0002,2]
[362380135,1748233841442,-150.0,0.0002,2]
[362380136,1748233841452,-43025.52907534,0.0002,2]
[362380137,1748233841461,-179.35569268,0.0002,2]
[362380138,1748233841470,-150.0,0.0002,2]
[362380139,1748233841480,-150.0,0.0002,2]
[362380140,1748233841491,-150.0,0.0002,2]
[362380141,1748233841500,-13486.08393595,0.0002,2]
[362380142,1748233841509,-6674.69181463,0.0002,2]
[362380143,1748233841519,-11261.07107512,0.0002,2]
[362380144,1748233841528,-303.61947423,0.0002,2]
[362380145,1748233841538,-226.0,0.0002,2]
[362380146,1748233841548,-598.12,0.0002,2]
[362380147,1748233841558,-640768.49143066,0.0002,2]
[362380148,1748233841956,-2569.78327386,0.0002,2]
[362380149,1748233841969,-18339.75252393,0.0002,2]
[362380150,1748233841981,-900.30517327,0.0002,2]
[362380153,1748233842966,2439.0,0.000273,120]
[362380156,1748233844479,-420.0,0.00019989,2]
[362380157,1748233844490,-485.12242683,0.00019999,2]
[362380158,1748233844500,-9639.46869463,0.0002,2]
[362380159,1748233844592,-2099.22874411,0.0002,2]
[362380160,1748233844605,-38435.32119709,0.0002,2]
[362380161,1748233844701,-5731.43555149,0.0002,2]
[362380162,1748233844713,-9517.18360513,0.0002,2]
[362380176,1748233845814,-444.98692003,0.0002,2]
[362380177,1748233845871,-11406.74029906,0.0002,2]
[362380178,1748233845884,-1000.0,0.0002,2]
[362380179,1748233845897,-2766.80359822,0.0002,2]
[362380180,1748233845991,-1586.39999995,0.0002,2]
[362380181,1748233846003,-16460.53463269,0.0002,2]
[362380182,1748233846161,-1000.0,0.0002,2]
[362380183,1748233846220,-507.91,0.0002,2]
[362380187,1748233909578,459.0,0.00027397,120]
[362380193,1748234052515,10410.0,0.00027397,120]
[362380196,1748234187273,327.76,0.00013699,2]
[362380206,1748234896423,153.09889936,0.00027388,120]
[362380207,1748234949246,270.0,0.00027397,120]
[362380209,1748235032005,-1138.26,0.00016972,2]
[362380210,1748235032015,-559.0,0.00018247,2]
[362380211,1748235032025,-152.86,0.00018781,2]
[362380212,1748235032034,-774.19654639,0.00018819,2]
[362380213,1748235032063,-225.80345361,0.00018819,2]
[362380214,1748235032072,-159.94,0.00018848,2]
[362380215,1748235032081,-511.75634896,0.00019164,2]
[362380216,1748235032090,-500.0,0.00019164,2]
[362380217,1748235032100,-300.0,0.00019177,2]
[362380218,1748235032110,-1200.0,0.00019177,2]
[362380219,1748235032120,-300.0,0.00019177,2]
[362380220,1748235032129,-153.302403,0.00019178,2]
[362380221,1748235032139,-153.302403,0.00019178,2]
[362380222,1748235032148,-153.302403,0.00019178,2]
[362380223,1748235032157,-166.077603,0.00019178,2]
[362380224,1748235032167,-166.077603,0.00019178,2]
[362380225,1748235032176,-166.077604,0.00019178,2]
[362380226,1748235032186,-166.077603,0.00019178,2]
[362380227,1748235032196,-166.077603,0.00019178,2]
[362380228,1748235032205,-166.077603,0.00019178,2]
[362380229,1748235032215,-207.4,0.00019188,2]
[362380230,1748235032224,-151.0,0.00019188,2]
[362380231,1748235032234,-500.0,0.00019199,2]
[362380232,1748235032243,-454.99530418,0.00019199,2]
[362380233,1748235032252,-20000.0,0.000192,2]
[362380234,1748235032261,-500.74309648,0.000192,2]
[362380235,1748235032270,-800.0,0.000192,7]
[362380236,1748235032280,-1138.26,0.00019236,2]
[362380237,1748235032289,-68.61297686,0.00019282,2]
[362380238,1748235032302,-139.38702314,0.00019282,2]
[362380239,1748235032312,-1600.0,0.000193,7]
[362380240,1748235032321,-153.302403,0.00019369,2]
[362380241,1748235032330,-166.077603,0.00019369,2]
[362380242,1748235032339,-166.077603,0.00019369,2]
[362380243,1748235032350,-1594.79418254,0.000194,7]
[362380244,1748235032362,-658.28505914,0.000194,7]
[362380245,1748235032375,-146.92075832,0.000194,7]
[362380246,1748235032387,-3300.0,0.000195,7]
[362380247,1748235032397,-166.68,0.00019502,2]
[362380248,1748235032406,-359.155708,0.00019599,2]
[362380249,1748235032416,-581.02791139,0.000196,7]
[362380250,1748235032434,-549.0,0.000196,7]
[362380251,1748235032447,-1367.96485811,0.000196,7]
[362380252,1748235032460,-1602.0072305,0.000196,7]
[362380253,1748235032470,-800.0,0.000197,7]
[362380254,1748235032479,-153.302403,0.00019726,2]
[362380255,1748235032489,-27.78317446,0.00019726,2]
[362380256,1748235032506,-125.51922854,0.00019726,2]
[362380257,1748235032517,-166.077603,0.00019726,2]
[362380258,1748235032526,-44.5998595,0.00019726,2]
[362380259,1748235032539,-121.4777435,0.00019726,2]
[362380260,1748235032550,-205.09821642,0.00019779,2]
[362380267,1748235037998,-288.95178358,0.00019779,2]
[362380268,1748235038008,-508.59,0.00019779,2]
[362380269,1748235038017,-152.39,0.00019779,2]
[362380270,1748235038027,-496.28,0.00019779,2]
[362380271,1748235038036,-502.35,0.00019779,2]
[362380272,1748235038046,-507.3,0.00019779,2]
[362380273,1748235038056,-505.1,0.00019779,2]
[362380274,1748235038070,-501.73,0.00019779,2]
[362380275,1748235038079,-491.87,0.00019779,2]
[362380276,1748235038088,-1606.605,0.0001978,2]
[362380277,1748235038097,-1000.0,0.0001978,2]
[362380278,1748235038108,-1000.0,0.0001978,2]